fUSD/lending_fUSD_20250321
["ID","MTS","AMOUNT","RATE_DAILY","PERIOD"]
[356515495,1742590927639,-2533.5,0.00047944,120]
[356515496,1742590927682,-1623.31,0.00047944,120]
[356515497,1742590927729,-1623.31,0.00047944,120]
[356515498,1742590927767,-1623.31,0.00047944,120]
[356515499,1742590927803,-680.94,0.00047944,120]
[356515500,1742590927841,-680.94,0.00047944,120]
[356515501,1742590927877,-500.0,0.00047945,120]
[356515502,1742590927914,-500.0,0.00047945,120]
[356515503,1742590927949,-500.0,0.00047945,120]
[356515504,1742590927985,-501.58548649,0.00047945,120]
[356515505,1742590928020,-500.0,0.00047945,120]
[356515506,1742590928056,-500.0,0.00047945,120]
[356515507,1742590928094,-500.0,0.00047945,120]
[356515508,1742590928134,-500.0,0.00047945,120]
[356515509,1742590928173,-312.83696425,0.00047945,120]
[356515510,1742590928211,-500.0,0.00047945,120]
[356515511,1742590928251,-424.5223593,0.00047945,120]
[356515512,1742590928287,-500.0,0.00047945,120]
[356515513,1742590928324,-500.0,0.00047945,120]
[356515514,1742590928361,-500.0,0.00047945,120]
[356515515,1742590928401,-503.67365826,0.00047945,120]
[356515516,1742590928441,-522.39792928,0.00047945,120]
[356515517,1742590928478,-500.0,0.00047945,120]
[356515518,1742590928521,-500.0,0.00047945,120]
[356515519,1742590928567,-500.0,0.00047945,120]
[356515520,1742590928612,-500.0,0.00047945,120]
[356515521,1742590928657,-500.0,0.00047945,120]
[356515522,1742590928697,-500.0,0.00047945,120]
[356515523,1742590928734,-549.85833138,0.00047945,120]
[356515524,1742590928772,-500.0,0.00047945,120]
[356515525,1742590928809,-626.93,0.00047945,120]
[356515526,1742590928848,-500.0,0.00047945,120]
[356515527,1742590928890,-513.51282311,0.00047945,120]
[356515528,1742590928931,-500.0,0.00047945,120]
[356515529,1742590928967,-500.0,0.00047945,120]
[356515530,1742590929004,-536.67048545,0.00047945,120]
[356515531,1742590929042,-500.0,0.00047945,120]
[356515532,1742590929079,-500.0,0.00047945,120]
[356515533,1742590929115,-519.94793682,0.00047945,120]
[356515534,1742590929158,-500.0,0.00047945,120]
[356515535,1742590929194,-500.0,0.00047945,120]
[356515536,1742590929232,-500.0,0.00047945,120]
[356515537,1742590929267,-500.0,0.00047945,120]
[356515538,1742590929303,-500.0,0.00047945,120]
[356515539,1742590929340,-500.0,0.00047945,120]
[356515540,1742590929376,-500.0,0.00047945,120]
[356515541,1742590929412,-500.0,0.00047945,120]
[356515542,1742590929448,-500.0,0.00047945,120]
[356515543,1742590929482,-571.09,0.00047945,120]
[356515544,1742590929516,-500.0,0.00047945,120]
[356515545,1742590929558,-500.0,0.00047945,120]
[356515546,1742590929594,-500.0,0.00047945,120]
[356515547,1742590929630,-500.0,0.00047945,120]
[356515548,1742590929858,-500.0,0.00047945,120]
[356515549,1742590929896,-500.0,0.00047945,120]
[356515550,1742590929933,-514.23876904,0.00047945,120]
[356515551,1742590929970,-500.0,0.00047945,120]
[356515552,1742590930009,-500.0,0.00047945,120]
[356515553,1742590930047,-500.0,0.00047945,120]
[356515554,1742590930087,-500.0,0.00047945,120]
[356515555,1742590930124,-552.18,0.00047945,120]
[356515556,1742590930164,-500.0,0.00047945,120]
[356515557,1742590930201,-500.0,0.00047945,120]
[356515558,1742590930240,-500.0,0.00047945,120]
[356515559,1742590930276,-500.0,0.00047945,120]
[356515560,1742590930314,-500.0,0.00047945,120]
[356515561,1742590930351,-500.0,0.00047945,120]
[356515562,1742590930388,-500.0,0.00047945,120]
[356515563,1742590930425,-500.0,0.00047945,120]
[356515564,1742590930474,-500.0,0.00047945,120]
[356515565,1742590930516,-500.0,0.00047945,120]
[356515566,1742590930556,-500.0,0.00047945,120]
[356515567,1742590930595,-500.0,0.00047945,120]
[356515568,1742590930634,-500.0,0.00047945,120]
[356515569,1742590930673,-500.0,0.00047945,120]
[356515570,1742590930711,-500.0,0.00047945,120]
[356515571,1742590930751,-500.0,0.00047945,120]
[356515572,1742590930792,-613.54,0.00047945,120]
[356515573,1742590930833,-500.0,0.00047945,120]
[356515574,1742590930870,-3031.23,0.00047945,120]
[356515575,1742590930905,-500.0,0.00047945,120]
[356515576,1742590930942,-500.0,0.00047945,120]
[356515577,1742590930979,-500.0,0.00047945,120]
[356515578,1742590931015,-518.23123845,0.00047945,120]
[356515579,1742590931051,-500.0,0.00047945,120]
[356515580,1742590931087,-500.0,0.00047945,120]
[356515581,1742590931124,-500.0,0.00047945,120]
[356515582,1742590931168,-585.21,0.00047945,120]
[356515583,1742590931207,-500.0,0.00047945,120]
[356515584,1742590931244,-500.0,0.00047945,120]
[356515585,1742590931281,-779.96,0.00047945,120]
[356515586,1742590931320,-556.79,0.00047945,120]
[356515587,1742590931358,-500.0,0.00047945,120]
[356515588,1742590931396,-500.0,0.00047945,120]
[356515589,1742590931434,-500.0,0.00047945,120]
[356515590,1742590931471,-588.11,0.00047945,120]
[356515591,1742590931510,-500.0,0.00047945,120]
[356515592,1742590931555,-500.0,0.00047945,120]
[356515593,1742590931595,-500.0,0.00047945,120]
[356515594,1742590931632,-632.53,0.00047945,120]
[356515595,1742590931671,-500.0,0.00047945,120]
[356515596,1742590931709,-557.83,0.00047945,120]
[356515597,1742590931748,-500.0,0.00047945,120]
[356515598,1742590931785,-1613.87,0.00047945,120]
[356515599,1742590931821,-495.80416207,0.00047945,120]
[356515600,1742590931858,-932.03,0.00047945,120]
[356515601,1742590931894,-500.0,0.00047945,120]
[356515602,1742590931930,-559.2,0.00047945,120]
[356515603,1742590931967,-500.0,0.00047945,120]
[356515604,1742590932003,-632.98,0.00047945,120]
[356515605,1742590932041,-500.0,0.00047945,120]
[356515606,1742590932077,-500.0,0.00047945,120]
[356515607,1742590932115,-500.0,0.00047945,120]
[356515608,1742590932155,-500.0,0.00047945,120]
[356515609,1742590932192,-500.0,0.00047945,120]
[356515610,1742590932231,-500.0,0.00047945,120]
[356515611,1742590932268,-519.11,0.00047945,120]
[356515612,1742590932304,-500.0,0.00047945,120]
[356515613,1742590932340,-500.0,0.00047945,120]
[356515614,1742590932375,-500.0,0.00047945,120]
[356515615,1742590932409,-500.0,0.00047945,120]
[356515616,1742590932444,-500.0,0.00047945,120]
[356515617,1742590932479,-500.0,0.00047945,120]
[356515618,1742590932514,-500.0,0.00047945,120]
[356515619,1742590932548,-503.37032845,0.00047945,120]
[356515620,1742590932584,-500.0,0.00047945,120]
[356515621,1742590932620,-500.0,0.00047945,120]
[356515622,1742590932656,-500.0,0.00047945,120]
[356515623,1742590932691,-500.0,0.00047945,120]
[356515624,1742590932728,-500.0,0.00047945,120]
[356515625,1742590932764,-500.0,0.00047945,120]
[356515626,1742590932800,-500.0,0.00047945,120]
[356515627,1742590932836,-503.29584184,0.00047945,120]
[356515628,1742590932872,-1050.8,0.00047945,120]
[356515629,1742590932908,-500.0,0.00047945,120]
[356515630,1742590932945,-500.0,0.00047945,120]
[356515631,1742590932982,-1795.27,0.00047945,120]
[356515632,1742590933018,-659.25,0.00047945,120]
[356515633,1742590933056,-500.0,0.00047945,120]
[356515634,1742590933095,-500.0,0.00047945,120]
[356515635,1742590933135,-500.0,0.00047945,120]
[356515636,1742590933173,-527.78,0.00047945,120]
[356515637,1742590933212,-500.0,0.00047945,120]
[356515638,1742590933251,-500.0,0.00047945,120]
[356515639,1742590933288,-500.0,0.00047945,120]
[356515640,1742590933322,-505.44996389,0.00047945,120]
[356515641,1742590933356,-500.0,0.00047945,120]
[356515642,1742590933390,-500.0,0.00047945,120]
[356515643,1742590933425,-500.0,0.00047945,120]
[356515644,1742590933460,-584.31,0.00047945,120]
[356515645,1742590933494,-500.0,0.00047945,120]
[356515646,1742590933528,-500.0,0.00047945,120]
[356515647,1742590933565,-500.0,0.00047945,120]
[356515648,1742590933602,-500.0,0.00047945,120]
[356515649,1742590933642,-500.0,0.00047945,120]
[356515650,1742590933682,-661.65,0.00047945,120]
[356515651,1742590933718,-1000.0,0.00047945,120]
[356515652,1742590933930,-500.0,0.00047945,120]
[356515653,1742590933977,-500.0,0.00047945,120]
[356515654,1742590934014,-500.0,0.00047945,120]
[356515655,1742590934051,-636.01898291,0.00047945,120]
[356515656,1742590934088,-500.0,0.00047945,120]
[356515657,1742590934125,-500.0,0.00047945,120]
[356515658,1742590934167,-500.0,0.00047945,120]
[356515659,1742590934205,-524.42168719,0.00047945,120]
[356515660,1742590934241,-518.07425719,0.00047945,120]
[356515661,1742590934277,-563.72,0.00047945,120]
[356515662,1742590934312,-500.0,0.00047945,120]
[356515663,1742590934347,-595.49625903,0.00047945,120]
[356515664,1742590934383,-500.0,0.00047945,120]
[356515665,1742590934418,-500.0,0.00047945,120]
[356515666,1742590934455,-500.0,0.00047945,120]
[356515667,1742590934490,-500.0,0.00047945,120]
[356515668,1742590934526,-528.84317977,0.00047945,120]
[356515669,1742590934562,-500.0,0.00047945,120]
[356515670,1742590934600,-300.0,0.00047945,120]
[356515671,1742590934641,-500.0,0.00047945,120]
[356515672,1742590934680,-500.0,0.00047945,120]
[356515673,1742590934716,-583.05,0.00047945,120]
[356515674,1742590934752,-500.0,0.00047945,120]
[356515675,1742590934787,-500.0,0.00047945,120]
[356515676,1742590934821,-500.0,0.00047945,120]
[356515677,1742590934855,-500.0,0.00047945,120]
[356515678,1742590934890,-500.0,0.00047945,120]
[356515679,1742590934924,-500.0,0.00047945,120]
[356515680,1742590934960,-597.9014072,0.00047945,120]
[356515681,1742590934997,-500.0,0.00047945,120]
[356515682,1742590935037,-1033.31,0.00047945,120]
[356515683,1742590935076,-500.0,0.00047945,120]
[356515684,1742590935114,-510.08292833,0.00047945,120]
[356515685,1742590935152,-500.0,0.00047945,120]
[356515686,1742590935189,-500.0,0.00047945,120]
[356515687,1742590935227,-782.8,0.00047945,120]
[356515688,1742590935263,-500.0,0.00047945,120]
[356515689,1742590935300,-3461.06,0.00047945,120]
[356515690,1742590935335,-500.0,0.00047945,120]
[356515691,1742590935371,-500.0,0.00047945,120]
[356515692,1742590935409,-500.0,0.00047945,120]
[356515693,1742590935445,-500.0,0.00047945,120]
[356515694,1742590935483,-500.0,0.00047945,120]
[356515695,1742590935518,-500.0,0.00047945,120]
[356515696,1742590935554,-500.0,0.00047945,120]
[356515697,1742590935590,-500.0,0.00047945,120]
[356515698,1742590935631,-505.7,0.00047945,120]
[356515699,1742590935674,-617.31210342,0.00047945,120]
[356515700,1742590935711,-500.0,0.00047945,120]
[356515701,1742590935746,-500.0,0.00047945,120]
[356515702,1742590935781,-500.0,0.00047945,120]
[356515703,1742590935815,-500.0,0.00047945,120]
[356515704,1742590935849,-614.18,0.00047945,120]
[356515705,1742590935884,-500.0,0.00047945,120]
[356515706,1742590935918,-500.0,0.00047945,120]
[356515707,1742590935955,-503.6613106,0.00047945,120]
[356515708,1742590935991,-500.0,0.00047945,120]
[356515709,1742590936029,-500.0,0.00047945,120]
[356515710,1742590936066,-500.0,0.00047945,120]
[356515711,1742590936105,-500.0,0.00047945,120]
[356515712,1742590936149,-508.68,0.00047945,120]
[356515713,1742590936187,-500.0,0.00047945,120]
[356515714,1742590936234,-500.0,0.00047945,120]
[356515715,1742590936273,-500.0,0.00047945,120]
[356515716,1742590936312,-500.0,0.00047945,120]
[356515717,1742590936352,-723.25,0.00047945,120]
[356515718,1742590936395,-500.0,0.00047945,120]
[356515719,1742590936433,-500.0,0.00047945,120]
[356515720,1742590936475,-690.77,0.00047945,120]
[356515721,1742590936513,-545.49,0.00047945,120]
[356515722,1742590936551,-549.7,0.00047945,120]
[356515723,1742590936587,-806.33,0.00047945,120]
[356515724,1742590936624,-500.0,0.00047945,120]
[356515725,1742590936660,-2499.87,0.00047945,120]
[356515726,1742590936696,-500.0,0.00047945,120]
[356515727,1742590936733,-500.0,0.00047945,120]
[356515728,1742590936771,-832.27,0.00047945,120]
[356515729,1742590936809,-776.34,0.00047945,120]
[356515730,1742590936845,-500.0,0.00047945,120]
[356515731,1742590936883,-500.0,0.00047945,120]
[356515732,1742590936918,-500.0,0.00047945,120]
[356515733,1742590936954,-500.0,0.00047945,120]
[356515734,1742590936990,-500.0,0.00047945,120]
[356515735,1742590937026,-500.0,0.00047945,120]
[356515736,1742590937062,-500.0,0.00047945,120]
[356515737,1742590937097,-553.28,0.00047945,120]
[356515738,1742590937139,-500.0,0.00047945,120]
[356515739,1742590937174,-500.0,0.00047945,120]
[356515740,1742590937210,-500.0,0.00047945,120]
[356515741,1742590937247,-500.0,0.00047945,120]
[356515742,1742590937284,-706.27,0.00047945,120]
[356515743,1742590937321,-500.0,0.00047945,120]
[356515744,1742590937356,-500.0,0.00047945,120]
[356515745,1742590937396,-956.18,0.00047945,120]
[356515746,1742590937434,-500.0,0.00047945,120]
[356515747,1742590937470,-500.0,0.00047945,120]
[356515748,1742590937504,-500.0,0.00047945,120]
[356515749,1742590937540,-722.07,0.00047945,120]
[356515750,1742590937575,-500.0,0.00047945,120]
[356515751,1742590937611,-500.0,0.00047945,120]
[356515752,1742590937646,-802.32,0.00047945,120]
[356515753,1742590937683,-500.0,0.00047945,120]
[356515754,1742590937719,-500.0,0.00047945,120]
[356515755,1742590937756,-500.0,0.00047945,120]
[356515756,1742590937796,-500.0,0.00047945,120]
[356515757,1742590937996,-500.0,0.00047945,120]
[356515758,1742590938035,-500.0,0.00047945,120]
[356515759,1742590938074,-574.54,0.00047945,120]
[356515760,1742590938113,-625.98,0.00047945,120]
[356515761,1742590938152,-500.0,0.00047945,120]
[356515762,1742590938190,-500.0,0.00047945,120]
[356515763,1742590938229,-500.0,0.00047945,120]
[356515764,1742590938267,-1500.0,0.00047945,120]
[356515765,1742590938305,-500.0,0.00047945,120]
[356515766,1742590938342,-500.0,0.00047945,120]
[356515767,1742590938379,-500.0,0.00047945,120]
[356515768,1742590938416,-500.0,0.00047945,120]
[356515769,1742590938452,-598.11,0.00047945,120]
[356515770,1742590938489,-500.0,0.00047945,120]
[356515771,1742590938526,-2418.17,0.00047945,120]
[356515772,1742590938562,-514.26903324,0.00047945,120]
[356515773,1742590938599,-500.0,0.00047945,120]
[356515774,1742590938639,-500.0,0.00047945,120]
[356515775,1742590938678,-500.0,0.00047945,120]
[356515776,1742590938716,-500.0,0.00047945,120]
[356515777,1742590938753,-500.0,0.00047945,120]
[356515778,1742590938789,-500.0,0.00047945,120]
[356515779,1742590938825,-500.0,0.00047945,120]
[356515780,1742590938862,-562.49,0.00047945,120]
[356515781,1742590938898,-677.48,0.00047945,120]
[356515782,1742590938935,-500.0,0.00047945,120]
[356515783,1742590938973,-500.0,0.00047945,120]
[356515784,1742590939011,-2780.65,0.00047945,120]
[356515785,1742590939049,-500.0,0.00047945,120]
[356515786,1742590939088,-500.0,0.00047945,120]
[356515787,1742590939128,-217.69132134,0.00047945,120]
[356515788,1742590939170,-500.0,0.00047945,120]
[356515789,1742590939205,-500.0,0.00047945,120]
[356515790,1742590939242,-500.0,0.00047945,120]
[356515791,1742590939279,-500.0,0.00047945,120]
[356515792,1742590939314,-500.0,0.00047945,120]
[356515793,1742590939349,-500.0,0.00047945,120]
[356515794,1742590939387,-500.0,0.00047945,120]
[356515795,1742590939424,-500.0,0.00047945,120]
[356515796,1742590939461,-509.5296181,0.00047945,120]
[356515797,1742590939498,-500.0,0.00047945,120]
[356515798,1742590939535,-500.0,0.00047945,120]
[356515800,1742590939573,-500.0,0.00047945,120]
[356515801,1742590939610,-500.0,0.00047945,120]
[356515802,1742590939649,-504.70810799,0.00047945,120]
[356515803,1742590939687,-500.93,0.00047945,120]
[356515804,1742590939725,-500.0,0.00047945,120]
[356515805,1742590939762,-500.0,0.00047945,120]
[356515806,1742590939799,-500.0,0.00047945,120]
[356515807,1742590939836,-500.0,0.00047945,120]
[356515809,1742590939871,-1087.77,0.00047945,120]
[356515810,1742590939906,-500.0,0.00047945,120]
[356515811,1742590939941,-500.0,0.00047945,120]
[356515812,1742590939975,-500.0,0.00047945,120]
[356515813,1742590940009,-500.0,0.00047945,120]
[356515814,1742590940047,-789.42,0.00047945,120]
[356515815,1742590940082,-510.34428886,0.00047945,120]
[356515817,1742590940118,-500.0,0.00047945,120]
[356515818,1742590940157,-500.0,0.00047945,120]
[356515819,1742590940195,-500.0,0.00047945,120]
[356515820,1742590940232,-500.0,0.00047945,120]
[356515821,1742590940269,-500.0,0.00047945,120]
[356515822,1742590940307,-666.0,0.00047945,120]
[356515823,1742590940344,-666.0,0.00047945,120]
[356515825,1742590940382,-666.0,0.00047945,120]
[356515826,1742590940420,-666.0,0.00047945,120]
[356515827,1742590940459,-666.0,0.00047945,120]
[356515828,1742590940501,-469.30328947,0.00047945,120]
[356515829,1742590940540,-666.0,0.00047945,120]
[356515830,1742590940578,-666.0,0.00047945,120]
[356515832,1742590940616,-666.0,0.00047945,120]
[356515833,1742590940655,-666.0,0.00047945,120]
[356515834,1742590940693,-384.96414129,0.00047945,120]
[356515835,1742590940731,-500.0,0.00047945,120]
[356515836,1742590940768,-1095.4,0.00047945,120]
[356515837,1742590940803,-500.0,0.00047945,120]
[356515838,1742590940839,-500.0,0.00047945,120]
[356515839,1742590940873,-740.49,0.00047945,120]
[356515840,1742590940912,-917.49,0.00047945,120]
[356515841,1742590940946,-500.0,0.00047945,120]
[356515843,1742590940981,-500.0,0.00047945,120]
[356515844,1742590941015,-425.37484062,0.00047945,120]
[356515845,1742590941049,-525.2,0.00047945,120]
[356515846,1742590941083,-1095.6,0.00047945,120]
[356515847,1742590941119,-596.35,0.00047945,120]
[356515848,1742590941162,-500.0,0.00047945,120]
[356515849,1742590941199,-723.24,0.00047945,120]
[356515851,1742590941236,-500.0,0.00047945,120]
[356515852,1742590941273,-500.0,0.00047945,120]
[356515853,1742590941309,-500.0,0.00047945,120]
[356515854,1742590941345,-506.69505717,0.00047945,120]
[356515855,1742590941382,-500.0,0.00047945,120]
[356515856,1742590941420,-500.0,0.00047945,120]
[356515857,1742590941457,-500.0,0.00047945,120]
[356515859,1742590941492,-500.0,0.00047945,120]
[356515860,1742590941528,-500.0,0.00047945,120]
[356515861,1742590941563,-500.0,0.00047945,120]
[356515862,1742590941600,-703.07,0.00047945,120]
[356515863,1742590941638,-500.0,0.00047945,120]
[356515864,1742590941673,-500.0,0.00047945,120]
[356515865,1742590941708,-922.35,0.00047945,120]
[356515866,1742590941743,-876.65,0.00047945,120]
[356515868,1742590941779,-500.0,0.00047945,120]
[356515869,1742590941814,-500.0,0.00047945,120]
[356515870,1742590941986,-567.06,0.00047945,120]
[356515871,1742590942043,-500.0,0.00047945,120]
[356515872,1742590942080,-500.0,0.00047945,120]
[356515873,1742590942116,-500.0,0.00047945,120]
[356515874,1742590942151,-1451.02,0.00047945,120]
[356515875,1742590942185,-1047.34,0.00047945,120]
[356515877,1742590942220,-500.0,0.00047945,120]
[356515878,1742590942254,-500.0,0.00047945,120]
[356515879,1742590942287,-500.0,0.00047945,120]
[356515880,1742590942321,-500.0,0.00047945,120]
[356515882,1742590942354,-500.0,0.00047945,120]
[356515883,1742590942392,-524.14,0.00047945,120]
[356515884,1742590942426,-500.0,0.00047945,120]
[356515885,1742590942460,-500.0,0.00047945,120]
[356515886,1742590942494,-500.0,0.00047945,120]
[356515887,1742590942530,-328.03492231,0.00047945,120]
[356515888,1742590942563,-500.0,0.00047945,120]
[356515890,1742590942600,-500.0,0.00047945,120]
[356515891,1742590942636,-500.0,0.00047945,120]
[356515892,1742590942673,-637.39,0.00047945,120]
[356515893,1742590942708,-500.0,0.00047945,120]
[356515894,1742590942747,-519.51902023,0.00047945,120]
[356515895,1742590942784,-500.0,0.00047945,120]
[356515896,1742590942820,-500.0,0.00047945,120]
[356515898,1742590942856,-500.0,0.00047945,120]
[356515899,1742590942892,-652.68,0.00047945,120]
[356515900,1742590942926,-500.0,0.00047945,120]
[356515901,1742590942962,-500.0,0.00047945,120]
[356515902,1742590942998,-500.0,0.00047945,120]
[356515903,1742590943037,-500.0,0.00047945,120]
[356515904,1742590943075,-500.0,0.00047945,120]
[356515906,1742590943111,-500.0,0.00047945,120]
[356515907,1742590943151,-500.0,0.00047945,120]
[356515908,1742590943188,-512.83651038,0.00047945,120]
[356515909,1742590943223,-878.74,0.00047945,120]
[356515910,1742590943258,-1563.26,0.00047945,120]
[356515911,1742590943293,-500.0,0.00047945,120]
[356515912,1742590943327,-500.0,0.00047945,120]
[356515914,1742590943361,-1058.149737,0.00047945,120]
[356515915,1742590943395,-811.02,0.00047945,120]
[356515916,1742590943428,-500.0,0.00047945,120]
[356515917,1742590943462,-500.0,0.00047945,120]
[356515918,1742590943504,-500.0,0.00047945,120]
[356515919,1742590943546,-500.0,0.00047945,120]
[356515920,1742590943591,-783.5,0.00047945,120]
[356515921,1742590943631,-589.07,0.00047945,120]
[356515923,1742590943669,-500.0,0.00047945,120]
[356515924,1742590943705,-275.35464574,0.00047945,120]
[356515925,1742590943742,-500.0,0.00047945,120]
[356515926,1742590943783,-500.0,0.00047945,120]
[356515927,1742590943822,-500.0,0.00047945,120]
[356515928,1742590943861,-830.958807,0.00047945,120]
[356515929,1742590943900,-554.83,0.00047945,120]
[356515931,1742590943936,-1041.23,0.00047945,120]
[356515932,1742590943973,-500.0,0.00047945,120]
[356515933,1742590944010,-608.84,0.00047945,120]
[356515934,1742590944047,-500.0,0.00047945,120]
[356515935,1742590944083,-513.87595402,0.00047945,120]
[356515936,1742590944120,-500.0,0.00047945,120]
[356515937,1742590944160,-500.0,0.00047945,120]
[356515939,1742590944196,-895.58,0.00047945,120]
[356515940,1742590944232,-5314.63,0.00047945,120]
[356515941,1742590944269,-279.64141938,0.00047945,120]
[356515942,1742590944307,-500.0,0.00047945,120]
[356515943,1742590944344,-1411.08,0.00047945,120]
[356515944,1742590944381,-559.37,0.00047945,120]
[356515946,1742590944418,-500.0,0.00047945,120]
[356515947,1742590944454,-500.0,0.00047945,120]
[356515948,1742590944490,-500.0,0.00047945,120]
[356515949,1742590944526,-500.0,0.00047945,120]
[356515950,1742590944562,-500.0,0.00047945,120]
[356515951,1742590944599,-812.98,0.00047945,120]
[356515952,1742590944637,-761.87,0.00047945,120]
[356515953,1742590944674,-500.0,0.00047945,120]
[356515954,1742590944712,-500.0,0.00047945,120]
[356515956,1742590944750,-500.0,0.00047945,120]
[356515958,1742590944787,-500.0,0.00047945,120]
[356515959,1742590944822,-500.0,0.00047945,120]
[356515960,1742590944857,-500.0,0.00047945,120]
[356515961,1742590944901,-2150.94,0.00047945,120]
[356515962,1742590944940,-589.58,0.00047945,120]
[356515964,1742590944986,-1162.97,0.00047945,120]
[356515965,1742590945029,-712.11,0.00047945,120]
[356515966,1742590945067,-716.99,0.00047945,120]
[356515967,1742590945105,-560.5,0.00047945,120]
[356515968,1742590945143,-500.0,0.00047945,120]
[356515969,1742590945179,-841.08,0.00047945,120]
[356515970,1742590945216,-500.0,0.00047945,120]
[356515971,1742590945251,-1429.31,0.00047945,120]
[356515973,1742590945288,-500.0,0.00047945,120]
[356515974,1742590945324,-886.88,0.00047945,120]
[356515975,1742590945361,-500.0,0.00047945,120]
[356515976,1742590945399,-530.32,0.00047945,120]
[356515977,1742590945436,-500.0,0.00047945,120]
[356515978,1742590945475,-3522.85,0.00047945,120]
[356515979,1742590945512,-500.0,0.00047945,120]
[356515980,1742590945549,-500.0,0.00047945,120]
[356515982,1742590945589,-500.0,0.00047945,120]
[356515983,1742590945629,-500.0,0.00047945,120]
[356515984,1742590945667,-810.0,0.00047945,120]
[356515985,1742590945704,-500.0,0.00047945,120]
[356515986,1742590945741,-500.0,0.00047945,120]
[356515987,1742590945777,-447.45325034,0.00047945,120]
[356515988,1742590945812,-633.52,0.00047945,120]
[356515989,1742590945847,-505.66,0.00047945,120]
[356515991,1742590946074,-506.41,0.00047945,120]
[356515992,1742590946113,-500.0,0.00047945,120]
[356515993,1742590946150,-500.0,0.00047945,120]
[356515994,1742590946188,-1060.43,0.00047945,120]
[356515995,1742590946235,-862.46,0.00047945,120]
[356515996,1742590946276,-2492.21,0.00047945,120]
[356515997,1742590946316,-500.0,0.00047945,120]
[356515998,1742590946359,-600.23,0.00047945,120]
[356515999,1742590946400,-500.0,0.00047945,60]
[356516000,1742590946438,-500.0,0.00047945,120]
[356516001,1742590946476,-664.01,0.00047945,120]
[356516002,1742590946514,-652.73,0.00047945,120]
[356516003,1742590946552,-1441.73,0.00047945,120]
[356516004,1742590946589,-825.49,0.00047945,120]
[356516005,1742590946627,-736.18,0.00047945,120]
[356516006,1742590946664,-500.0,0.00047945,120]
[356516007,1742590946705,-689.41,0.00047945,120]
[356516008,1742590946744,-500.0,0.00047945,120]
[356516009,1742590946781,-500.0,0.00047945,120]
[356516010,1742590946818,-581.85,0.00047945,120]
[356516011,1742590946855,-648.26,0.00047945,120]
[356516012,1742590946891,-671.32,0.00047945,120]
[356516013,1742590946927,-500.0,0.00047945,120]
[356516014,1742590946964,-500.0,0.00047945,120]
[356516015,1742590946999,-500.0,0.00047945,120]
[356516016,1742590947034,-567.87,0.00047945,120]
[356516017,1742590947070,-608.44,0.00047945,120]
[356516018,1742590947109,-500.0,0.00047945,120]
[356516019,1742590947147,-4374.94,0.00047945,120]